[Event "Titled Tuesday Blitz July 05 Late 2022"]
[White "Maksimovic, Bojan"]
[Black "Tica, Sven"]
[WhiteFideId "14408120"]
[BlackFideId "14526948"]
[WhiteElo "2453"]
[BlackElo "2346"]
[Result "0-1"]
[Round "05"]
[TimeControl "180+1"]
[Date "2022.07.06"]
[WhiteClock "0:00:01"]
[BlackClock "0:00:49"]

1. Nf3 {[%clk 0:03:00]}  g6 {[%clk 0:02:59]} 2. c4 {[%clk 0:03:00]}  Bg7 {[%clk 0:03:00]} 3. Nc3 {[%clk 0:03:01]}  d6 {[%clk 0:02:59]} 4. d4 {[%clk 0:03:01]}  Nd7 {[%clk 0:02:58]} 5. e4 {[%clk 0:03:00]}  e5 {[%clk 0:02:58]} 6. Be2 {[%clk 0:02:59]}  Ne7 {[%clk 0:02:58]} 7. O-O {[%clk 0:02:58]}  O-O {[%clk 0:02:57]} 8. Bg5 {[%clk 0:02:42]}  h6 {[%clk 0:02:56]} 9. Be3 {[%clk 0:02:24]}  f5 {[%clk 0:02:55]} 10. dxe5 {[%clk 0:02:20]}  f4 {[%clk 0:02:08]} 11. exd6 {[%clk 0:01:58]}  fxe3 {[%clk 0:02:08]} 12. dxe7 {[%clk 0:01:58]}  Qxe7 {[%clk 0:02:04]} 13. fxe3 {[%clk 0:01:50]}  c6 {[%clk 0:02:04]} 14. Qc2 {[%clk 0:01:40]}  Nc5 {[%clk 0:01:58]} 15. Rad1 {[%clk 0:01:37]}  Bd7 {[%clk 0:01:51]} 16. e5 {[%clk 0:01:21]}  Bf5 {[%clk 0:01:47]} 17. Qc1 {[%clk 0:00:56]}  Rad8 {[%clk 0:01:43]} 18. Rxd8 {[%clk 0:00:51]}  Rxd8 {[%clk 0:01:40]} 19. Nd4 {[%clk 0:00:30]}  Bd3 {[%clk 0:01:31]} 20. Bxd3 {[%clk 0:00:17]}  Nxd3 {[%clk 0:01:32]} 21. Qc2 {[%clk 0:00:18]}  Nxe5 {[%clk 0:01:32]} 22. Qe4 {[%clk 0:00:18]}  Rd7 {[%clk 0:01:22]} 23. h3 {[%clk 0:00:17]}  Nxc4 {[%clk 0:01:15]} 24. Ne6 {[%clk 0:00:17]}  Nd2 {[%clk 0:01:12]} 25. Qxg6 {[%clk 0:00:08]}  Nxf1 {[%clk 0:01:12]} 26. Ne4 {[%clk 0:00:08]}  Qf7 {[%clk 0:01:03]} 27. Qxf7+ {[%clk 0:00:06]}  Kxf7 {[%clk 0:00:59]} 28. Nxg7 {[%clk 0:00:06]}  Rd1 {[%clk 0:00:55]} 29. Nf5 {[%clk 0:00:01]}  Nxe3+ {[%clk 0:00:53]} 30. Kf2 {[%clk 0:00:01]}  Nxf5 {[%clk 0:00:54]} 31. g4 {[%clk 0:00:02]}  Nd6 {[%clk 0:00:53]} 32. Nc3 {[%clk 0:00:01]}  Rd2+ {[%clk 0:00:53]} 33. Ke3 {[%clk 0:00:02]}  Rxb2 {[%clk 0:00:54]} 34. Kd4 {[%clk 0:00:03]}  Rh2 {[%clk 0:00:52]} 35. Ke5 {[%clk 0:00:03]}  Nc4+ {[%clk 0:00:52]} 36. Kd4 {[%clk 0:00:03]}  Nb6 {[%clk 0:00:52]} 37. Ne4 {[%clk 0:00:03]}  Rxh3 {[%clk 0:00:51]} 38. g5 {[%clk 0:00:04]}  Rh4 {[%clk 0:00:50]} 39. gxh6 {[%clk 0:00:04]}  Kg6 {[%clk 0:00:50]} 40. Ke5 {[%clk 0:00:02]}  Nc4+ {[%clk 0:00:50]} 41. Kd4 {[%clk 0:00:01]}  Nd6 {[%clk 0:00:51]} 42. Kc5 {[%clk 0:00:01]}  Nxe4+ {[%clk 0:00:51]} 43. Kd4 {[%clk 0:00:01]}  Nf6+ {[%clk 0:00:51]} 44. Ke5 {[%clk 0:00:01]}  Rxh6 {[%clk 0:00:49]} 0-1


[Site "https://www.chess.com"]

[Event "Titled Tuesday Blitz July 05 Late 2022"]
[White "Martin Carmona, Gaston Manuel"]
[Black "Yurasova, Daria"]
[WhiteFideId "22284567"]
[BlackFideId "34146919"]
[WhiteElo "2162"]
[BlackElo "2021"]
[Result "1-0"]
[Round "05"]
[TimeControl "180+1"]
[Date "2022.07.06"]
[WhiteClock "0:00:04"]
[BlackClock "0:00:08"]

1. d4 {[%clk 0:02:55]}  d5 {[%clk 0:03:00]} 2. c4 {[%clk 0:02:52]}  dxc4 {[%clk 0:02:55]} 3. Nf3 {[%clk 0:02:52]}  Nf6 {[%clk 0:02:55]} 4. e3 {[%clk 0:02:53]}  e6 {[%clk 0:02:55]} 5. Bxc4 {[%clk 0:02:53]}  a6 {[%clk 0:02:53]} 6. O-O {[%clk 0:02:54]}  b5 {[%clk 0:02:53]} 7. Be2 {[%clk 0:02:54]}  Nbd7 {[%clk 0:02:53]} 8. a4 {[%clk 0:02:54]}  b4 {[%clk 0:02:52]} 9. Nbd2 {[%clk 0:02:55]}  Bb7 {[%clk 0:02:52]} 10. Nc4 {[%clk 0:02:55]}  c5 {[%clk 0:02:52]} 11. a5 {[%clk 0:02:52]}  Qc7 {[%clk 0:02:50]} 12. Bd2 {[%clk 0:02:29]}  Be7 {[%clk 0:02:48]} 13. dxc5 {[%clk 0:02:28]}  Bxc5 {[%clk 0:02:44]} 14. Rc1 {[%clk 0:02:24]}  O-O {[%clk 0:02:43]} 15. Qe1 {[%clk 0:02:23]}  Rab8 {[%clk 0:02:34]} 16. Nd4 {[%clk 0:02:08]}  Ba8 {[%clk 0:02:21]} 17. Bf3 {[%clk 0:02:06]}  Bxd4 {[%clk 0:01:54]} 18. Bxa8 {[%clk 0:02:05]}  Rxa8 {[%clk 0:01:38]} 19. Nb6 {[%clk 0:02:05]}  Bxb6 {[%clk 0:01:27]} 20. Rxc7 {[%clk 0:02:01]}  Bxc7 {[%clk 0:01:28]} 21. Bxb4 {[%clk 0:02:01]}  Rfb8 {[%clk 0:01:26]} 22. Bc3 {[%clk 0:02:00]}  Nd5 {[%clk 0:01:26]} 23. Qd2 {[%clk 0:02:00]}  N7f6 {[%clk 0:01:17]} 24. Bd4 {[%clk 0:01:49]}  Bd6 {[%clk 0:01:15]} 25. f3 {[%clk 0:01:44]}  Bb4 {[%clk 0:01:14]} 26. Qe2 {[%clk 0:01:45]}  Bxa5 {[%clk 0:01:13]} 27. e4 {[%clk 0:01:46]}  Ne7 {[%clk 0:01:09]} 28. Ra1 {[%clk 0:01:46]}  Bb6 {[%clk 0:01:04]} 29. Qe3 {[%clk 0:01:46]}  Bxd4 {[%clk 0:01:01]} 30. Qxd4 {[%clk 0:01:46]}  h6 {[%clk 0:00:57]} 31. h4 {[%clk 0:01:45]}  Rb7 {[%clk 0:00:53]} 32. g4 {[%clk 0:01:39]}  Rab8 {[%clk 0:00:49]} 33. Ra2 {[%clk 0:01:39]}  Rd7 {[%clk 0:00:44]} 34. Qa4 {[%clk 0:01:33]}  Ng6 {[%clk 0:00:39]} 35. g5 {[%clk 0:01:32]}  Rbd8 {[%clk 0:00:30]} 36. gxf6 {[%clk 0:01:31]}  Rd1+ {[%clk 0:00:30]} 37. Kh2 {[%clk 0:01:30]}  Nxh4 {[%clk 0:00:26]} 38. Kg3 {[%clk 0:01:17]}  Ng6 {[%clk 0:00:21]} 39. b4 {[%clk 0:01:13]}  h5 {[%clk 0:00:20]} 40. fxg7 {[%clk 0:01:09]}  Kxg7 {[%clk 0:00:21]} 41. Qxa6 {[%clk 0:00:55]}  h4+ {[%clk 0:00:20]} 42. Kg4 {[%clk 0:00:55]}  Rg1+ {[%clk 0:00:19]} 43. Kh3 {[%clk 0:00:54]}  Rdd1 {[%clk 0:00:12]} 44. Rg2 {[%clk 0:00:45]}  Rh1+ {[%clk 0:00:11]} 45. Kg4 {[%clk 0:00:45]}  Kf6 {[%clk 0:00:10]} 46. f4 {[%clk 0:00:39]}  h3 {[%clk 0:00:10]} 47. e5+ {[%clk 0:00:36]}  Kg7 {[%clk 0:00:09]} 48. Rf2 {[%clk 0:00:33]}  h2 {[%clk 0:00:07]} 49. Kh3 {[%clk 0:00:23]}  Rde1 {[%clk 0:00:04]} 50. Qd3 {[%clk 0:00:16]}  Rhg1 {[%clk 0:00:01]} 51. Kxh2 {[%clk 0:00:16]}  Rg4 {[%clk 0:00:01]} 52. Rf1 {[%clk 0:00:12]}  Rxf1 {[%clk 0:00:01]} 53. Qxf1 {[%clk 0:00:12]}  Rxf4 {[%clk 0:00:02]} 54. Qe2 {[%clk 0:00:12]}  Rf5 {[%clk 0:00:02]} 55. b5 {[%clk 0:00:11]}  Rxe5 {[%clk 0:00:03]} 56. Qb2 {[%clk 0:00:12]}  Kf8 {[%clk 0:00:02]} 57. b6 {[%clk 0:00:12]}  Rh5+ {[%clk 0:00:02]} 58. Kg2 {[%clk 0:00:12]}  Rg5+ {[%clk 0:00:03]} 59. Kf3 {[%clk 0:00:12]}  Rf5+ {[%clk 0:00:04]} 60. Kg4 {[%clk 0:00:12]}  Ne5+ {[%clk 0:00:04]} 61. Kh3 {[%clk 0:00:12]}  Rh5+ {[%clk 0:00:03]} 62. Kg2 {[%clk 0:00:12]}  Rg5+ {[%clk 0:00:04]} 63. Kf1 {[%clk 0:00:10]}  Rf5+ {[%clk 0:00:04]} 64. Kg1 {[%clk 0:00:09]}  Nf3+ {[%clk 0:00:03]} 65. Kh1 {[%clk 0:00:08]}  Rh5+ {[%clk 0:00:03]} 66. Kg2 {[%clk 0:00:09]}  Nh4+ {[%clk 0:00:04]} 67. Kg3 {[%clk 0:00:08]}  Nf5+ {[%clk 0:00:04]} 68. Kg4 {[%clk 0:00:09]}  Rh4+ {[%clk 0:00:05]} 69. Kg5 {[%clk 0:00:09]}  Ke7 {[%clk 0:00:04]} 70. b7 {[%clk 0:00:08]}  Rd4 {[%clk 0:00:03]} 71. Qxd4 {[%clk 0:00:05]}  Nxd4 {[%clk 0:00:04]} 72. b8=Q {[%clk 0:00:05]}  f6+ {[%clk 0:00:05]} 73. Kg4 {[%clk 0:00:05]}  f5+ {[%clk 0:00:05]} 74. Kg3 {[%clk 0:00:05]}  Kf6 {[%clk 0:00:05]} 75. Kf2 {[%clk 0:00:06]}  e5 {[%clk 0:00:05]} 76. Qh8+ {[%clk 0:00:06]}  Ke6 {[%clk 0:00:05]} 77. Qe8+ {[%clk 0:00:07]}  Kd5 {[%clk 0:00:06]} 78. Qd7+ {[%clk 0:00:07]}  Ke4 {[%clk 0:00:07]} 79. Qb7+ {[%clk 0:00:07]}  Kf4 {[%clk 0:00:08]} 80. Qh7 {[%clk 0:00:06]}  Ke4 {[%clk 0:00:08]} 81. Qh4+ {[%clk 0:00:07]}  f4 {[%clk 0:00:08]} 82. Qh7+ {[%clk 0:00:06]}  Kd5 {[%clk 0:00:08]} 83. Qd7+ {[%clk 0:00:07]}  Ke4 {[%clk 0:00:09]} 84. Qh7+ {[%clk 0:00:07]}  Kd5 {[%clk 0:00:09]} 85. Qf7+ {[%clk 0:00:07]}  Ke4 {[%clk 0:00:10]} 86. Qf6 {[%clk 0:00:08]}  Kd5 {[%clk 0:00:10]} 87. Qf7+ {[%clk 0:00:07]}  Ke4 {[%clk 0:00:10]} 88. Qg8 {[%clk 0:00:05]}  Kf5 {[%clk 0:00:10]} 89. Qg7 {[%clk 0:00:05]}  Ke4 {[%clk 0:00:10]} 90. Ke1 {[%clk 0:00:05]}  Kd5 {[%clk 0:00:09]} 91. Kd2 {[%clk 0:00:05]}  Ke4 {[%clk 0:00:09]} 92. Qg6+ {[%clk 0:00:05]}  Kd5 {[%clk 0:00:09]} 93. Kd3 {[%clk 0:00:06]}  Ne6 {[%clk 0:00:07]} 94. Qe4+ {[%clk 0:00:07]}  Kd6 {[%clk 0:00:08]} 95. Kc4 {[%clk 0:00:07]}  Ke7 {[%clk 0:00:06]} 96. Qxe5 {[%clk 0:00:07]}  Kf7 {[%clk 0:00:07]} 97. Kd5 {[%clk 0:00:07]}  Ng7 {[%clk 0:00:06]} 98. Qxf4+ {[%clk 0:00:07]}  Kg6 {[%clk 0:00:07]} 99. Ke5 {[%clk 0:00:07]}  Kh7 {[%clk 0:00:07]} 100. Qg3 {[%clk 0:00:05]}  Nh5 {[%clk 0:00:07]} 101. Qh4 {[%clk 0:00:05]}  Kh6 {[%clk 0:00:08]} 102. Kf5 {[%clk 0:00:04]} 1-0


[Site "https://www.chess.com"]

[Event "Titled Tuesday Blitz July 05 Late 2022"]
[White "Olenik Campa, Rudi"]
[Black "Milanovic, Marko"]
[WhiteFideId "14633264"]
[BlackFideId "980129"]
[WhiteElo "2066"]
[BlackElo "2151"]
[Result "1-0"]
[Round "05"]
[TimeControl "180+1"]
[Date "2022.07.06"]
[WhiteClock "0:00:05"]
[BlackClock "0:00:06"]

1. e4 {[%clk 0:03:00]}  c5 {[%clk 0:02:59]} 2. Nf3 {[%clk 0:02:56]}  Nc6 {[%clk 0:02:59]} 3. Bb5 {[%clk 0:02:55]}  d6 {[%clk 0:02:59]} 4. O-O {[%clk 0:02:54]}  Bd7 {[%clk 0:02:58]} 5. c3 {[%clk 0:02:55]}  a6 {[%clk 0:02:48]} 6. Be2 {[%clk 0:02:54]}  Nf6 {[%clk 0:02:48]} 7. d3 {[%clk 0:02:53]}  g6 {[%clk 0:02:47]} 8. Re1 {[%clk 0:02:53]}  Bg7 {[%clk 0:02:47]} 9. Nbd2 {[%clk 0:02:53]}  O-O {[%clk 0:02:48]} 10. a4 {[%clk 0:02:53]}  b5 {[%clk 0:02:48]} 11. Nf1 {[%clk 0:02:47]}  b4 {[%clk 0:02:44]} 12. Ne3 {[%clk 0:02:46]}  a5 {[%clk 0:02:44]} 13. Nc4 {[%clk 0:02:44]}  Be6 {[%clk 0:02:40]} 14. Bf1 {[%clk 0:02:41]}  bxc3 {[%clk 0:02:33]} 15. bxc3 {[%clk 0:02:41]}  Bxc4 {[%clk 0:02:27]} 16. dxc4 {[%clk 0:02:41]}  Nd7 {[%clk 0:02:28]} 17. Qc2 {[%clk 0:02:36]}  Rb8 {[%clk 0:02:26]} 18. Be3 {[%clk 0:02:31]}  Qc7 {[%clk 0:02:24]} 19. Reb1 {[%clk 0:02:25]}  Rxb1 {[%clk 0:02:23]} 20. Rxb1 {[%clk 0:02:25]}  Rb8 {[%clk 0:02:24]} 21. Bd2 {[%clk 0:02:21]}  Rxb1 {[%clk 0:02:22]} 22. Qxb1 {[%clk 0:02:22]}  Na7 {[%clk 0:02:02]} 23. Qb3 {[%clk 0:01:37]}  Qb6 {[%clk 0:02:00]} 24. Qc2 {[%clk 0:01:28]}  Nc6 {[%clk 0:01:59]} 25. Bd3 {[%clk 0:01:22]}  Nde5 {[%clk 0:01:57]} 26. Nxe5 {[%clk 0:01:22]}  Nxe5 {[%clk 0:01:54]} 27. Be2 {[%clk 0:01:22]}  Nc6 {[%clk 0:01:42]} 28. Bd3 {[%clk 0:01:17]}  Qb7 {[%clk 0:01:39]} 29. f4 {[%clk 0:01:09]}  Nb8 {[%clk 0:01:27]} 30. Qb1 {[%clk 0:01:02]}  Qxb1+ {[%clk 0:01:22]} 31. Bxb1 {[%clk 0:01:03]}  Nd7 {[%clk 0:01:13]} 32. Bc2 {[%clk 0:01:03]}  e6 {[%clk 0:01:06]} 33. Kf2 {[%clk 0:01:02]}  Kf8 {[%clk 0:01:05]} 34. Ke3 {[%clk 0:01:02]}  Ke7 {[%clk 0:01:05]} 35. Kd3 {[%clk 0:01:02]}  f5 {[%clk 0:01:04]} 36. g3 {[%clk 0:00:41]}  Nf6 {[%clk 0:01:03]} 37. exf5 {[%clk 0:00:33]}  gxf5 {[%clk 0:01:03]} 38. h3 {[%clk 0:00:29]}  Ne4 {[%clk 0:00:59]} 39. Be1 {[%clk 0:00:28]}  d5 {[%clk 0:00:18]} 40. Bd1 {[%clk 0:00:16]}  Nd6 {[%clk 0:00:18]} 41. cxd5 {[%clk 0:00:16]}  exd5 {[%clk 0:00:19]} 42. Kc2 {[%clk 0:00:14]}  Ne4 {[%clk 0:00:18]} 43. Bf3 {[%clk 0:00:13]}  Ke6 {[%clk 0:00:18]} 44. Be2 {[%clk 0:00:12]}  Kd6 {[%clk 0:00:15]} 45. c4 {[%clk 0:00:13]}  d4 {[%clk 0:00:14]} 46. Bxa5 {[%clk 0:00:12]}  Nxg3 {[%clk 0:00:13]} 47. Bd3 {[%clk 0:00:13]}  Nh5 {[%clk 0:00:12]} 48. Bd2 {[%clk 0:00:13]}  Bh6 {[%clk 0:00:11]} 49. Bxf5 {[%clk 0:00:12]}  Bxf4 {[%clk 0:00:11]} 50. Bxh7 {[%clk 0:00:12]}  Bxd2 {[%clk 0:00:11]} 51. Kxd2 {[%clk 0:00:13]}  Nf4 {[%clk 0:00:10]} 52. Bf5 {[%clk 0:00:12]}  Kc6 {[%clk 0:00:10]} 53. h4 {[%clk 0:00:12]}  Kb6 {[%clk 0:00:10]} 54. Bg4 {[%clk 0:00:12]}  Ka5 {[%clk 0:00:10]} 55. h5 {[%clk 0:00:12]}  Kxa4 {[%clk 0:00:10]} 56. h6 {[%clk 0:00:12]}  Ng6 {[%clk 0:00:10]} 57. Bf5 {[%clk 0:00:12]}  Nh8 {[%clk 0:00:09]} 58. Kd3 {[%clk 0:00:13]}  Kb4 {[%clk 0:00:09]} 59. Be6 {[%clk 0:00:12]}  Kb3 {[%clk 0:00:08]} 60. h7 {[%clk 0:00:12]}  Kb4 {[%clk 0:00:09]} 61. Bd5 {[%clk 0:00:11]}  Kb3 {[%clk 0:00:09]} 62. Bg2 {[%clk 0:00:10]}  Kb4 {[%clk 0:00:09]} 63. Bf1 {[%clk 0:00:10]}  Nf7 {[%clk 0:00:09]} 64. Be2 {[%clk 0:00:07]}  Ne5+ {[%clk 0:00:08]} 65. Ke4 {[%clk 0:00:06]}  Nf7 {[%clk 0:00:08]} 66. Kd5 {[%clk 0:00:07]}  Kc3 {[%clk 0:00:08]} 67. Kxc5 {[%clk 0:00:06]}  d3 {[%clk 0:00:07]} 68. Bxd3 {[%clk 0:00:06]}  Kxd3 {[%clk 0:00:08]} 69. Kb5 {[%clk 0:00:06]}  Kd4 {[%clk 0:00:09]} 70. c5 {[%clk 0:00:06]}  Kd5 {[%clk 0:00:09]} 71. Kb6 {[%clk 0:00:05]}  Ke6 {[%clk 0:00:05]} 72. c6 {[%clk 0:00:06]}  Kf6 {[%clk 0:00:05]} 73. c7 {[%clk 0:00:05]}  Kg7 {[%clk 0:00:04]} 74. c8=Q {[%clk 0:00:05]}  Kxh7 {[%clk 0:00:05]} 75. Qc7 {[%clk 0:00:05]}  Kg7 {[%clk 0:00:06]} 76. Kc5 {[%clk 0:00:06]}  Kf6 {[%clk 0:00:06]} 77. Qf4+ {[%clk 0:00:06]}  Ke6 {[%clk 0:00:06]} 78. Kd4 {[%clk 0:00:05]}  Nd6 {[%clk 0:00:06]} 79. Qe5+ {[%clk 0:00:05]}  Kd7 {[%clk 0:00:06]} 80. Kd5 {[%clk 0:00:05]}  Ne8 {[%clk 0:00:07]} 81. Qf5+ {[%clk 0:00:05]}  Ke7 {[%clk 0:00:07]} 82. Qh7+ {[%clk 0:00:05]}  Kd8 {[%clk 0:00:06]} 83. Ke5 {[%clk 0:00:06]}  Nc7 {[%clk 0:00:06]} 84. Kd6 {[%clk 0:00:06]}  Ne8+ {[%clk 0:00:07]} 85. Kc6 {[%clk 0:00:06]}  Nf6 {[%clk 0:00:06]} 86. Qf7 {[%clk 0:00:05]}  Ne8 {[%clk 0:00:06]} 87. Qd7# {[%clk 0:00:05]} 1-0


[Site "https://www.chess.com"]

[Event "Titled Tuesday Blitz July 05 Late 2022"]
[White "Poltorak, Sebastian"]
[Black "Makarian, Rudik"]
[WhiteFideId "1199498"]
[BlackFideId "44105681"]
[WhiteElo "2104"]
[BlackElo "2403"]
[Result "0-1"]
[Round "05"]
[TimeControl "180+1"]
[Date "2022.07.05"]
[WhiteClock "0:00:08"]
[BlackClock "0:00:13"]

1. d4 {[%clk 0:03:00]}  Nf6 {[%clk 0:02:17]} 2. c4 {[%clk 0:02:59]}  g6 {[%clk 0:02:17]} 3. f3 {[%clk 0:02:59]}  Bg7 {[%clk 0:02:18]} 4. e4 {[%clk 0:03:00]}  d6 {[%clk 0:02:19]} 5. Ne2 {[%clk 0:03:00]}  c6 {[%clk 0:02:13]} 6. Be3 {[%clk 0:03:00]}  O-O {[%clk 0:02:10]} 7. Nec3 {[%clk 0:03:00]}  e5 {[%clk 0:02:05]} 8. d5 {[%clk 0:03:00]}  Nh5 {[%clk 0:02:05]} 9. Qd2 {[%clk 0:02:58]}  f5 {[%clk 0:02:04]} 10. Be2 {[%clk 0:02:47]}  c5 {[%clk 0:02:01]} 11. Na3 {[%clk 0:02:41]}  a6 {[%clk 0:02:01]} 12. Nc2 {[%clk 0:02:35]}  Nf4 {[%clk 0:01:55]} 13. Bf1 {[%clk 0:02:12]}  Nd7 {[%clk 0:01:55]} 14. O-O-O {[%clk 0:02:11]}  Kh8 {[%clk 0:01:34]} 15. g3 {[%clk 0:02:09]}  Nh5 {[%clk 0:01:34]} 16. Be2 {[%clk 0:01:51]}  Ndf6 {[%clk 0:01:19]} 17. Rdg1 {[%clk 0:01:43]}  fxe4 {[%clk 0:01:15]} 18. Nxe4 {[%clk 0:01:40]}  Nxe4 {[%clk 0:01:15]} 19. fxe4 {[%clk 0:01:41]}  Nf6 {[%clk 0:01:15]} 20. Bd3 {[%clk 0:01:29]}  Ng4 {[%clk 0:01:12]} 21. Bg5 {[%clk 0:01:27]}  Qxg5 {[%clk 0:01:03]} 22. Qxg5 {[%clk 0:01:27]}  Bh6 {[%clk 0:01:04]} 23. Qxh6 {[%clk 0:01:25]}  Nxh6 {[%clk 0:01:05]} 24. Kd2 {[%clk 0:00:59]}  Bd7 {[%clk 0:00:59]} 25. h3 {[%clk 0:00:47]}  Kg7 {[%clk 0:00:56]} 26. g4 {[%clk 0:00:47]}  Rf4 {[%clk 0:00:51]} 27. Rf1 {[%clk 0:00:39]}  Nf7 {[%clk 0:00:50]} 28. Ke3 {[%clk 0:00:38]}  b5 {[%clk 0:00:47]} 29. b3 {[%clk 0:00:32]}  g5 {[%clk 0:00:43]} 30. Ne1 {[%clk 0:00:29]}  b4 {[%clk 0:00:41]} 31. Ng2 {[%clk 0:00:29]}  a5 {[%clk 0:00:37]} 32. Nxf4 {[%clk 0:00:29]}  exf4+ {[%clk 0:00:38]} 33. Kd2 {[%clk 0:00:28]}  Ne5 {[%clk 0:00:34]} 34. Bc2 {[%clk 0:00:20]}  h6 {[%clk 0:00:32]} 35. Ra1 {[%clk 0:00:18]}  a4 {[%clk 0:00:29]} 36. Bd3 {[%clk 0:00:16]}  a3 {[%clk 0:00:17]} 37. Raf1 {[%clk 0:00:14]}  Rh8 {[%clk 0:00:17]} 38. Be2 {[%clk 0:00:12]}  Be8 {[%clk 0:00:15]} 39. Rhg1 {[%clk 0:00:12]}  Bg6 {[%clk 0:00:15]} 40. Bd3 {[%clk 0:00:10]}  Re8 {[%clk 0:00:15]} 41. h4 {[%clk 0:00:07]}  Nxd3 {[%clk 0:00:13]} 42. Kxd3 {[%clk 0:00:07]}  Rxe4 {[%clk 0:00:13]} 43. hxg5 {[%clk 0:00:06]}  hxg5 {[%clk 0:00:14]} 44. Kd2 {[%clk 0:00:06]}  Rd4+ {[%clk 0:00:13]} 45. Kc1 {[%clk 0:00:07]}  Rd3 {[%clk 0:00:13]} 46. Rd1 {[%clk 0:00:07]}  Rc3+ {[%clk 0:00:13]} 47. Kd2 {[%clk 0:00:07]}  Rc2+ {[%clk 0:00:13]} 48. Ke1 {[%clk 0:00:07]}  Rxa2 {[%clk 0:00:14]} 49. Rd2 {[%clk 0:00:07]}  Ra1+ {[%clk 0:00:11]} 50. Rd1 {[%clk 0:00:07]}  Rxd1+ {[%clk 0:00:11]} 51. Kxd1 {[%clk 0:00:08]}  a2 {[%clk 0:00:12]} 52. Kd2 {[%clk 0:00:08]}  Bb1 {[%clk 0:00:13]} 0-1


[Site "https://www.chess.com"]

[Event "Titled Tuesday Blitz July 05 Late 2022"]
[White "Premnath, R."]
[Black "Toncheva, Nadya"]
[WhiteFideId "5021928"]
[BlackFideId "2924056"]
[WhiteElo "2616"]
[BlackElo "1888"]
[Result "1-0"]
[Round "05"]
[TimeControl "180+1"]
[Date "2022.07.06"]
[WhiteClock "0:00:05"]
[BlackClock "0:00:01"]

1. d4 {[%clk 0:02:59]}  Nf6 {[%clk 0:02:55]} 2. c4 {[%clk 0:02:59]}  e6 {[%clk 0:02:55]} 3. Nf3 {[%clk 0:02:59]}  c5 {[%clk 0:02:55]} 4. d5 {[%clk 0:02:58]}  exd5 {[%clk 0:02:56]} 5. cxd5 {[%clk 0:02:58]}  d6 {[%clk 0:02:57]} 6. Nc3 {[%clk 0:02:59]}  g6 {[%clk 0:02:57]} 7. e4 {[%clk 0:02:59]}  a6 {[%clk 0:02:57]} 8. a4 {[%clk 0:02:58]}  Bg4 {[%clk 0:02:58]} 9. Bf4 {[%clk 0:02:56]}  Qe7 {[%clk 0:02:54]} 10. Bd3 {[%clk 0:02:43]}  Bg7 {[%clk 0:02:53]} 11. h3 {[%clk 0:02:43]}  Bxf3 {[%clk 0:02:52]} 12. Qxf3 {[%clk 0:02:44]}  Nbd7 {[%clk 0:02:53]} 13. Qd1 {[%clk 0:02:38]}  O-O {[%clk 0:02:52]} 14. O-O {[%clk 0:02:37]}  Rac8 {[%clk 0:02:46]} 15. a5 {[%clk 0:02:09]}  c4 {[%clk 0:02:39]} 16. Bc2 {[%clk 0:02:10]}  Nc5 {[%clk 0:02:39]} 17. Re1 {[%clk 0:02:08]}  Nfd7 {[%clk 0:02:33]} 18. Qe2 {[%clk 0:01:47]}  Nb3 {[%clk 0:02:22]} 19. Bxb3 {[%clk 0:01:30]}  cxb3 {[%clk 0:02:22]} 20. Bd2 {[%clk 0:01:24]}  Ne5 {[%clk 0:02:15]} 21. Ra3 {[%clk 0:01:23]}  Nc4 {[%clk 0:02:07]} 22. Rxb3 {[%clk 0:01:23]}  Nxa5 {[%clk 0:01:52]} 23. Rb4 {[%clk 0:01:10]}  b5 {[%clk 0:01:46]} 24. Nxb5 {[%clk 0:00:34]}  axb5 {[%clk 0:01:36]} 25. Qxb5 {[%clk 0:00:35]}  Rc5 {[%clk 0:01:28]} 26. Qa6 {[%clk 0:00:28]}  Rfc8 {[%clk 0:01:17]} 27. Ra1 {[%clk 0:00:27]}  Nc4 {[%clk 0:01:16]} 28. Bc3 {[%clk 0:00:20]}  Bxc3 {[%clk 0:01:09]} 29. bxc3 {[%clk 0:00:21]}  Qxe4 {[%clk 0:01:10]} 30. Qb7 {[%clk 0:00:11]}  Qxd5 {[%clk 0:01:04]} 31. Qe7 {[%clk 0:00:11]}  Qe5 {[%clk 0:01:00]} 32. Qh4 {[%clk 0:00:11]}  Qxc3 {[%clk 0:00:59]} 33. Raa4 {[%clk 0:00:07]}  Nb2 {[%clk 0:00:53]} 34. Ra7 {[%clk 0:00:06]}  Qe1+ {[%clk 0:00:42]} 35. Kh2 {[%clk 0:00:06]}  Qe5+ {[%clk 0:00:30]} 36. f4 {[%clk 0:00:05]}  Qg7 {[%clk 0:00:18]} 37. Rbb7 {[%clk 0:00:05]}  Rf8 {[%clk 0:00:17]} 38. Qe7 {[%clk 0:00:05]}  Nd3 {[%clk 0:00:16]} 39. Qxd6 {[%clk 0:00:05]}  Rc3 {[%clk 0:00:08]} 40. Rb8 {[%clk 0:00:05]}  Rxb8 {[%clk 0:00:07]} 41. Qxb8+ {[%clk 0:00:06]}  Qf8 {[%clk 0:00:08]} 42. Qb7 {[%clk 0:00:05]}  Rc8 {[%clk 0:00:06]} 43. Qd5 {[%clk 0:00:05]}  Nc5 {[%clk 0:00:06]} 44. f5 {[%clk 0:00:05]}  gxf5 {[%clk 0:00:05]} 45. Qxf5 {[%clk 0:00:04]}  Ne6 {[%clk 0:00:04]} 46. Qg4+ {[%clk 0:00:05]}  Ng7 {[%clk 0:00:04]} 47. h4 {[%clk 0:00:04]}  Qd6+ {[%clk 0:00:04]} 48. Kh3 {[%clk 0:00:04]}  Rc3+ {[%clk 0:00:04]} 49. g3 {[%clk 0:00:04]}  Qe6 {[%clk 0:00:03]} 50. Ra8+ {[%clk 0:00:04]}  Rc8 {[%clk 0:00:01]} 51. Rxc8+ {[%clk 0:00:04]}  Qxc8 {[%clk 0:00:01]} 52. Qxc8+ {[%clk 0:00:05]} 1-0


[Site "https://www.chess.com"]